Workbook

Sheet Introduction

Sheet Annuity Repayment
C1: Driver 1 | D1: Driver 2 | E1: Driver 3 | F1: Driver 4
A2: Inputs
B3: Period | H3: 0 | I3: 1 | J3: 2 | K3: 3 | L3: 4 | M3: 5 | N3: 6 | O3: 7 | P3: 8 | Q3: 9 | R3: 10 | S3: 11 | T3: 12 | U3: 13 | V3: 14 | W3: 15 | X3: 16 | Y3: 17 | Z3: 18 | AA3: 19 | AB3: 20 | AC3: 21 | AD3: 22 | AE3: 23 | AF3: 24 | AG3: 25 | AH3: 26 | AI3: 27 | AJ3: 28 | AK3: 29 | AL3: 30
B4: Interest Rate Code | C4: 3
B5: Varying Interest Rate | H5: 0.025 | I5: 0.0265 | J5: 0.0265 | K5: 0.0265 | L5: 0.0265 | M5: 0.028 | N5: 0.028 | O5: 0.028 | P5: 0.028 | Q5: 0.028 | R5: 0.03 | S5: 0.03 | T5: 0.03 | U5: 0.03 | V5: 0.03 | W5: 0.031 | X5: 0.031 | Y5: 0.031 | Z5: 0.031 | AA5: 0.031 | AB5: 0.031 | AC5: 0.031 | AD5: 0.031 | AE5: 0.031 | AF5: 0.031 | AG5: 0.031 | AH5: 0.031 | AI5: 0.031 | AJ5: 0.031 | AK5: 0.031 | AL5: 0.031
B6: Flat Interest Rate | H6: 0.025 | I6: 0.025 | J6: 0.025 | K6: 0.025 | L6: 0.025 | M6: 0.025 | N6: 0.025 | O6: 0.025 | P6: 0.025 | Q6: 0.025 | R6: 0.025 | S6: 0.025 | T6: 0.025 | U6: 0.025 | V6: 0.025 | W6: 0.025 | X6: 0.025 | Y6: 0.025 | Z6: 0.025 | AA6: 0.025 | AB6: 0.025 | AC6: 0.025 | AD6: 0.025 | AE6: 0.025 | AF6: 0.025 | AG6: 0.025 | AH6: 0.025 | AI6: 0.025 | AJ6: 0.025 | AK6: 0.025 | AL6: 0.025
B7: Steep Interest Rates | H7: 0.025 | I7: =H7*1.03 -> 0.02575 | J7: =I7*1.03 -> 0.0265225 | K7: 0.027318175 | L7: 0.02813772025 | M7: 0.02898185186 | N7: 0.02985130741 | O7: 0.03074684664 | P7: 0.03166925203 | Q7: 0.0326193296 | R7: 0.03359790948 | S7: 0.03460584677 | T7: 0.03564402217 | U7: 0.03671334284 | V7: 0.03781474312 | W7: 0.03894918542 | X7: 0.04011766098 | Y7: 0.04132119081 | Z7: 0.04256082653 | AA7: 0.04383765133 | AB7: 0.04515278087 | AC7: 0.04650736429 | AD7: 0.04790258522 | AE7: 0.04933966278 | AF7: 0.05081985266 | AG7: 0.05234444824 | AH7: 0.05391478169 | AI7: 0.05553222514 | AJ7: 0.05719819189 | AK7: 0.05891413765 | AL7: 0.06068156178
B9: =INDEX(B5:B7,$C$4) -> Steep Interest Rates | H9: =INDEX(H5:H7,$C$4) -> 0.025 | I9: 0.02575 | J9: 0.0265225 | K9: 0.027318175 | L9: 0.02813772025 | M9: 0.02898185186 | N9: 0.02985130741 | O9: 0.03074684664 | P9: 0.03166925203 | Q9: 0.0326193296 | R9: 0.03359790948 | S9: 0.03460584677 | T9: 0.03564402217 | U9: 0.03671334284 | V9: 0.03781474312 | W9: 0.03894918542 | X9: 0.04011766098 | Y9: 0.04132119081 | Z9: 0.04256082653 | AA9: 0.04383765133 | AB9: 0.04515278087 | AC9: 0.04650736429 | AD9: 0.04790258522 | AE9: 0.04933966278 | AF9: 0.05081985266 | AG9: 0.05234444824 | AH9: 0.05391478169 | AI9: 0.05553222514 | AJ9: 0.05719819189 | AK9: 0.05891413765 | AL9: 0.06068156178
B11: Tenure | D11: 20
B12: Debt Balance | D12: 1000
B13: Repayment Function Applied | D13: 4 | F13: Simple PMT
F14: PPMT Function with Changing Rates
F15: Remaining Life PMT
F16: Function for Remaining Life PMT
A18: Alternative Payment and Repayment Calculations
B19: Repayment Flag | C19: 1 | D19: =D11 -> 20 | H19: =AND(H3>=$C$19,H3<=$D$19)*1 -> 0 | I19: =AND(I3>=$C$19,I3<=$D$19)*1 -> 1 | J19: 1 | K19: 1 | L19: 1 | M19: 1 | N19: 1 | O19: 1 | P19: 1 | Q19: 1 | R19: 1 | S19: 1 | T19: 1 | U19: 1 | V19: 1 | W19: 1 | X19: 1 | Y19: 1 | Z19: 1 | AA19: 1 | AB19: 1 | AC19: 0 | AD19: 0 | AE19: 0 | AF19: 0 | AG19: 0 | AH19: 0 | AI19: 0 | AJ19: 0 | AK19: 0 | AL19: 0
B20: Simple Payment | C20: =H9 -> 0.025 | D20: =D11 -> 20 | E20: =D12 -> 1000 | F20: =PMT(C20,D20,-E20) -> 64.14712873 | H20: =$F$20*H19 -> 0 | I20: =$F$20*I19 -> 64.14712873 | J20: 64.14712873 | K20: 64.14712873 | L20: 64.14712873 | M20: 64.14712873 | N20: 64.14712873 | O20: 64.14712873 | P20: 64.14712873 | Q20: 64.14712873 | R20: 64.14712873 | S20: 64.14712873 | T20: 64.14712873 | U20: 64.14712873 | V20: 64.14712873 | W20: 64.14712873 | X20: 64.14712873 | Y20: 64.14712873 | Z20: 64.14712873 | AA20: 64.14712873 | AB20: 64.14712873 | AC20: 0 | AD20: 0 | AE20: 0 | AF20: 0 | AG20: 0 | AH20: 0 | AI20: 0 | AJ20: 0 | AK20: 0 | AL20: 0
B21: PPMT | C21: =C20 -> 0.025 | D21: =D20 -> 20 | E21: 1000 | H21: =IF(H19,PPMT($C$21,H3,$D$21,-$E$21)) -> FALSE | I21: =IF(I19,PPMT(I9,I3,$D$21,-$E$21)) -> 38.85246473 | J21: =IF(J19,PPMT(J9,J3,$D$21,-$E$21)) -> 39.57325847 | K21: 40.35995942 | L21: 41.21840891 | M21: 42.15511027 | N21: 43.17731909 | O21: 44.29314757 | P21: 45.51168552 | Q21: 46.84314094 | R21: 48.29900386 | S21: 49.89223763 | T21: 51.63750305 | U21: 53.55142147 | V21: 55.65288469 | W21: 57.96342089 | X21: 60.50762802 | Y21: 63.3136888 | Z21: 66.41398429 | AA21: 69.84582752 | AB21: 73.6523434 | AC21: FALSE | AD21: FALSE | AE21: FALSE | AF21: FALSE | AG21: FALSE | AH21: FALSE | AI21: FALSE | AJ21: FALSE | AK21: FALSE | AL21: FALSE
B23: Remaining Period | C23: =D11 -> 20 | H23: =IF(H3=1,$C$23,G23-1)*H19 -> 0 | I23: =IF(I3=1,$C$23,H23-1)*I19 -> 20 | J23: 19 | K23: 18 | L23: 17 | M23: 16 | N23: 15 | O23: 14 | P23: 13 | Q23: 12 | R23: 11 | S23: 10 | T23: 9 | U23: 8 | V23: 7 | W23: 6 | X23: 5 | Y23: 4 | Z23: 3 | AA23: 2 | AB23: 1 | AC23: 0 | AD23: 0 | AE23: 0 | AF23: 0 | AG23: 0 | AH23: 0 | AI23: 0 | AJ23: 0 | AK23: 0 | AL23: 0
B24: Opening Balance | C24: =D12 -> 1000 | H24: =IF(H3=1,$C$24,G24-G27) -> 0 | I24: =IF(I3=1,$C$24,H24-H27) -> 1000 | J24: 961.1475353 | K24: 921.5866935 | L24: 881.2654359 | M24: 840.1275509 | N24: 798.1122453 | O24: 755.1536878 | P24: 711.1804989 | Q24: 666.1151793 | R24: 619.8734692 | S24: 572.3636286 | T24: 523.4856281 | U24: 473.1302363 | V24: 421.1779906 | W24: 367.4980339 | X24: 311.9467962 | Y24: 254.3665006 | Z24: 194.5834652 | AA24: 132.4061704 | AB24: 67.62305499 | AC24: -1.421085472e-14 | AD24: -1.487176411e-14 | AE24: -1.558416006e-14 | AF24: -1.635307726e-14 | AG24: -1.718413824e-14 | AH24: -1.808363247e-14 | AI24: -1.905860757e-14 | AJ24: -2.011697446e-14 | AK24: -2.126762902e-14 | AL24: -2.252059305e-14
B25: Payment | H25: =IF(H19,PMT(H9,H23,-H24)) -> FALSE | I25: =IF(I19,PMT(I9,I23,-I24)) -> 64.60246473 | J25: 65.05287724 | K25: 65.49732418 | L25: 65.93468534 | M25: 66.36375786 | N25: 66.78325144 | O25: 67.19178349 | P25: 67.58787407 | Q25: 67.96994072 | R25: 68.33629328 | S25: 68.68512857 | T25: 69.01452517 | U25: 69.32243819 | V25: 69.60669427 | W25: 69.86498678 | X25: 70.09487137 | Y25: 70.29376207 | Z25: 70.45892798 | AA25: 70.5874909 | AB25: 70.67642398 | AC25: FALSE | AD25: FALSE | AE25: FALSE | AF25: FALSE | AG25: FALSE | AH25: FALSE | AI25: FALSE | AJ25: FALSE | AK25: FALSE | AL25: FALSE
B26: Intrest | H26: =H24*H9 -> 0 | I26: =I24*I9 -> 25.75 | J26: =J24*J9 -> 25.4920355 | K26: 25.17606657 | L26: 24.7968003 | M26: 24.34845222 | N26: 23.82469398 | O26: 23.21859463 | P26: 22.52255446 | Q26: 21.72823058 | R26: 20.82645271 | S26: 19.80712803 | T26: 18.65913333 | U26: 17.37019257 | V26: 15.92673752 | W26: 14.31374906 | X26: 12.51457581 | Y26: 10.51072671 | Z26: 8.28163311 | AA26: 5.80437553 | AB26: 3.053368984 | AC26: -6.609093972e-16 | AD26: -7.123959478e-16 | AE26: -7.68917202e-16 | AF26: -8.31060977e-16 | AG26: -8.994942346e-16 | AH26: -9.74975097e-16 | AI26: -1.058366886e-15 | AJ26: -1.150654565e-15 | AK26: -1.252964024e-15 | AL26: -1.366584758e-15
B27: Repayment | F27: =SUM(H27:AL27) -> 1000 | H27: =H25-H26 -> 0 | I27: =I25-I26 -> 38.85246473 | J27: =J25-J26 -> 39.56084174 | K27: 40.32125761 | L27: 41.13788504 | M27: 42.01530563 | N27: 42.95855746 | O27: 43.97318887 | P27: 45.06531961 | Q27: 46.24171014 | R27: 47.50984057 | S27: 48.87800054 | T27: 50.35539183 | U27: 51.95224562 | V27: 53.67995675 | W27: 55.55123772 | X27: 57.58029556 | Y27: 59.78303536 | Z27: 62.17729487 | AA27: 64.78311537 | AB27: 67.62305499 | AC27: 6.609093972e-16 | AD27: 7.123959478e-16 | AE27: 7.68917202e-16 | AF27: 8.31060977e-16 | AG27: 8.994942346e-16 | AH27: 9.74975097e-16 | AI27: 1.058366886e-15 | AJ27: 1.150654565e-15 | AK27: 1.252964024e-15 | AL27: 1.366584758e-15
B28: Repayment Percent | F28: =SUM(H28:AL28) -> 1 | I28: =I27/$F$27 -> 0.03885246473 | J28: =J27/$F$27 -> 0.03956084174 | K28: 0.04032125761 | L28: 0.04113788504 | M28: 0.04201530563 | N28: 0.04295855746 | O28: 0.04397318887 | P28: 0.04506531961 | Q28: 0.04624171014 | R28: 0.04750984057 | S28: 0.04887800054 | T28: 0.05035539183 | U28: 0.05195224562 | V28: 0.05367995675 | W28: 0.05555123772 | X28: 0.05758029556 | Y28: 0.05978303536 | Z28: 0.06217729487 | AA28: 0.06478311537 | AB28: 0.06762305499 | AC28: 6.609093972e-19 | AD28: 7.123959478e-19 | AE28: 7.68917202e-19 | AF28: 8.31060977e-19 | AG28: 8.994942346e-19 | AH28: 9.74975097e-19 | AI28: 1.058366886e-18 | AJ28: 1.150654565e-18 | AK28: 1.252964024e-18 | AL28: 1.366584758e-18
B30: Interest Rate | H30: =H9 -> 0.025 | I30: =I9 -> 0.02575 | J30: 0.0265225 | K30: 0.027318175 | L30: 0.02813772025 | M30: 0.02898185186 | N30: 0.02985130741 | O30: 0.03074684664 | P30: 0.03166925203 | Q30: 0.0326193296 | R30: 0.03359790948 | S30: 0.03460584677 | T30: 0.03564402217 | U30: 0.03671334284 | V30: 0.03781474312 | W30: 0.03894918542 | X30: 0.04011766098 | Y30: 0.04132119081 | Z30: 0.04256082653 | AA30: 0.04383765133 | AB30: 0.04515278087 | AC30: 0.04650736429 | AD30: 0.04790258522 | AE30: 0.04933966278 | AF30: 0.05081985266 | AG30: 0.05234444824 | AH30: 0.05391478169 | AI30: 0.05553222514 | AJ30: 0.05719819189 | AK30: 0.05891413765 | AL30: 0.06068156178
B31: Repayment Flag | H31: =H19 -> 0 | I31: =I19 -> 1 | J31: 1 | K31: 1 | L31: 1 | M31: 1 | N31: 1 | O31: 1 | P31: 1 | Q31: 1 | R31: 1 | S31: 1 | T31: 1 | U31: 1 | V31: 1 | W31: 1 | X31: 1 | Y31: 1 | Z31: 1 | AA31: 1 | AB31: 1 | AC31: 0 | AD31: 0 | AE31: 0 | AF31: 0 | AG31: 0 | AH31: 0 | AI31: 0 | AJ31: 0 | AK31: 0 | AL31: 0
B33: Repayment Fuction | F33: =SUM(I33:AL33) -> 1 | I33: =repayment_varying_rate(D11,I9:AL9) -> 0.03885246473 | J33: 0.03956084174 | K33: 0.04032125761 | L33: 0.04113788504 | M33: 0.04201530563 | N33: 0.04295855746 | O33: 0.04397318887 | P33: 0.04506531961 | Q33: 0.04624171014 | R33: 0.04750984057 | S33: 0.04887800054 | T33: 0.05035539183 | U33: 0.05195224562 | V33: 0.05367995675 | W33: 0.05555123772 | X33: 0.05758029556 | Y33: 0.05978303536 | Z33: 0.06217729487 | AA33: 0.06478311537 | AB33: 0.06762305499 | AC33: 0 | AD33: 0 | AE33: 0 | AF33: 0 | AG33: 0 | AH33: 0 | AI33: 0 | AJ33: 0 | AK33: 0 | AL33: 0
B34: Repayment Using Function | C34: =D12 -> 1000 | I34: =$C$34*I33 -> 38.85246473 | J34: =$C$34*J33 -> 39.56084174 | K34: 40.32125761 | L34: 41.13788504 | M34: 42.01530563 | N34: 42.95855746 | O34: 43.97318887 | P34: 45.06531961 | Q34: 46.24171014 | R34: 47.50984057 | S34: 48.87800054 | T34: 50.35539183 | U34: 51.95224562 | V34: 53.67995675 | W34: 55.55123772 | X34: 57.58029556 | Y34: 59.78303536 | Z34: 62.17729487 | AA34: 64.78311537 | AB34: 67.62305499 | AC34: 0 | AD34: 0 | AE34: 0 | AF34: 0 | AG34: 0 | AH34: 0 | AI34: 0 | AJ34: 0 | AK34: 0 | AL34: 0
B36: Repayment and No Flag | E36: =D11 -> 20 | F36: =SUM(I36:AL36) -> 1 | I36: =repayment_varying_rate(E36,I30:AL30) -> 0.03885246473 | J36: 0.03956084174 | K36: 0.04032125761 | L36: 0.04113788504 | M36: 0.04201530563 | N36: 0.04295855746 | O36: 0.04397318887 | P36: 0.04506531961 | Q36: 0.04624171014 | R36: 0.04750984057 | S36: 0.04887800054 | T36: 0.05035539183 | U36: 0.05195224562 | V36: 0.05367995675 | W36: 0.05555123772 | X36: 0.05758029556 | Y36: 0.05978303536 | Z36: 0.06217729487 | AA36: 0.06478311537 | AB36: 0.06762305499 | AC36: 0 | AD36: 0 | AE36: 0 | AF36: 0 | AG36: 0 | AH36: 0 | AI36: 0 | AJ36: 0 | AK36: 0 | AL36: 0
B37: Repayment with Total Line and No Flag | E37: =E36 -> 20 | F37: =SUM(I37:AL37) -> 1 | I37: =repayment_varying_rate(E37,30:30) -> 0.03914712873 | J37: 0.03984069778 | K37: 0.0405847777 | L37: 0.04138336977 | M37: 0.04224086232 | N37: 0.04316207529 | O37: 0.04415231043 | P37: 0.04521740836 | Q37: 0.04636381312 | R37: 0.04759864556 | S37: 0.04892978691 | T37: 0.05036597382 | U37: 0.05191690705 | V37: 0.05359337559 | W37: 0.05540739879 | X37: 0.05737238939 | Y37: 0.05950334082 | Z37: 0.06181704273 | AA37: 0.06433232937 | AB37: 0.06707036648 | AC37: 0 | AD37: 0 | AE37: 0 | AF37: 0 | AG37: 0 | AH37: 0 | AI37: 0 | AJ37: 0 | AK37: 0 | AL37: 0
B38: Repayment with Total Line and Flag | E38: =E37 -> 20 | F38: =SUM(I38:AL38) -> 1 | I38: =repayment_varying_rate(E38,9:9,19:19) -> 0 | J38: 0.03885246473 | K38: 0.03956084174 | L38: 0.04032125761 | M38: 0.04113788504 | N38: 0.04201530563 | O38: 0.04295855746 | P38: 0.04397318887 | Q38: 0.04506531961 | R38: 0.04624171014 | S38: 0.04750984057 | T38: 0.04887800054 | U38: 0.05035539183 | V38: 0.05195224562 | W38: 0.05367995675 | X38: 0.05555123772 | Y38: 0.05758029556 | Z38: 0.05978303536 | AA38: 0.06217729487 | AB38: 0.06478311537 | AC38: 0.06762305499 | AD38: 0 | AE38: 0 | AF38: 0 | AG38: 0 | AH38: 0 | AI38: 0 | AJ38: 0 | AK38: 0 | AL38: 0
A41: Debt Balance Check
B43: Opening Balance | H43: =G46 -> 0 | I43: =H46 -> 1000 | J43: 961.1475353 | K43: 921.5866935 | L43: 881.2654359 | M43: 840.1275509 | N43: 798.1122453 | O43: 755.1536878 | P43: 711.1804989 | Q43: 666.1151793 | R43: 619.8734692 | S43: 572.3636286 | T43: 523.4856281 | U43: 473.1302363 | V43: 421.1779906 | W43: 367.4980339 | X43: 311.9467962 | Y43: 254.3665006 | Z43: 194.5834652 | AA43: 132.4061704 | AB43: 67.62305499 | AC43: 0 | AD43: 0 | AE43: 0 | AF43: 0 | AG43: 0 | AH43: 0 | AI43: 0 | AJ43: 0 | AK43: 0 | AL43: 0
B44: Add: Draw | C44: =D12 -> 1000 | H44: =$C$44*(H3=0) -> 1000 | I44: =$C$44*(I3=0) -> 0 | J44: 0 | K44: 0 | L44: 0 | M44: 0 | N44: 0 | O44: 0 | P44: 0 | Q44: 0 | R44: 0 | S44: 0 | T44: 0 | U44: 0 | V44: 0 | W44: 0 | X44: 0 | Y44: 0 | Z44: 0 | AA44: 0 | AB44: 0 | AC44: 0 | AD44: 0 | AE44: 0 | AF44: 0 | AG44: 0 | AH44: 0 | AI44: 0 | AJ44: 0 | AK44: 0 | AL44: 0
B45: Repayment | H45: =CHOOSE($D$13,H20-H47,H21,H27,H34) -> 0 | I45: =CHOOSE($D$13,I20-I47,I21,I27,I34) -> 38.85246473 | J45: 39.56084174 | K45: 40.32125761 | L45: 41.13788504 | M45: 42.01530563 | N45: 42.95855746 | O45: 43.97318887 | P45: 45.06531961 | Q45: 46.24171014 | R45: 47.50984057 | S45: 48.87800054 | T45: 50.35539183 | U45: 51.95224562 | V45: 53.67995675 | W45: 55.55123772 | X45: 57.58029556 | Y45: 59.78303536 | Z45: 62.17729487 | AA45: 64.78311537 | AB45: 67.62305499 | AC45: 0 | AD45: 0 | AE45: 0 | AF45: 0 | AG45: 0 | AH45: 0 | AI45: 0 | AJ45: 0 | AK45: 0 | AL45: 0
B46: Closing Balance | H46: =H43+H44-H45 -> 1000 | I46: =I43+I44-I45 -> 961.1475353 | J46: 921.5866935 | K46: 881.2654359 | L46: 840.1275509 | M46: 798.1122453 | N46: 755.1536878 | O46: 711.1804989 | P46: 666.1151793 | Q46: 619.8734692 | R46: 572.3636286 | S46: 523.4856281 | T46: 473.1302363 | U46: 421.1779906 | V46: 367.4980339 | W46: 311.9467962 | X46: 254.3665006 | Y46: 194.5834652 | Z46: 132.4061704 | AA46: 67.62305499 | AB46: 0 | AC46: 0 | AD46: 0 | AE46: 0 | AF46: 0 | AG46: 0 | AH46: 0 | AI46: 0 | AJ46: 0 | AK46: 0 | AL46: 0
B47: Interest | H47: =H43*H9 -> 0 | I47: =I43*I9 -> 25.75 | J47: 25.4920355 | K47: 25.17606657 | L47: 24.7968003 | M47: 24.34845222 | N47: 23.82469398 | O47: 23.21859463 | P47: 22.52255446 | Q47: 21.72823058 | R47: 20.82645271 | S47: 19.80712803 | T47: 18.65913333 | U47: 17.37019257 | V47: 15.92673752 | W47: 14.31374906 | X47: 12.51457581 | Y47: 10.51072671 | Z47: 8.28163311 | AA47: 5.80437553 | AB47: 3.053368984 | AC47: 0 | AD47: 0 | AE47: 0 | AF47: 0 | AG47: 0 | AH47: 0 | AI47: 0 | AJ47: 0 | AK47: 0 | AL47: 0
B49: Test | C49: =D11 -> 20 | D49: =ROUND(LOOKUP(C49,3:3,46:46),2)=0 -> TRUE
A51: Graph | H51: =IF(H19,H3,NA()) ->  | I51: =IF(I19,I3,NA()) -> 1 | J51: 2 | K51: 3 | L51: 4 | M51: 5 | N51: 6 | O51: 7 | P51: 8 | Q51: 9 | R51: 10 | S51: 11 | T51: 12 | U51: 13 | V51: 14 | W51: 15 | X51: 16 | Y51: 17 | Z51: 18 | AA51: 19 | AB51: 20
B52: Reapayment | H52: =H45 -> 0 | I52: =I45 -> 38.85246473 | J52: 39.56084174 | K52: 40.32125761 | L52: 41.13788504 | M52: 42.01530563 | N52: 42.95855746 | O52: 43.97318887 | P52: 45.06531961 | Q52: 46.24171014 | R52: 47.50984057 | S52: 48.87800054 | T52: 50.35539183 | U52: 51.95224562 | V52: 53.67995675 | W52: 55.55123772 | X52: 57.58029556 | Y52: 59.78303536 | Z52: 62.17729487 | AA52: 64.78311537 | AB52: 67.62305499 | AC52: 0 | AD52: 0 | AE52: 0 | AF52: 0 | AG52: 0 | AH52: 0 | AI52: 0 | AJ52: 0 | AK52: 0 | AL52: 0
H54: =H51 ->  | I54: =I51 -> 1 | J54: 2 | K54: 3 | L54: 4 | M54: 5 | N54: 6 | O54: 7 | P54: 8 | Q54: 9 | R54: 10 | S54: 11 | T54: 12 | U54: 13 | V54: 14 | W54: 15 | X54: 16 | Y54: 17 | Z54: 18 | AA54: 19 | AB54: 20
H55: =H45 -> 0 | I55: =I45 -> 38.85246473 | J55: 39.56084174 | K55: 40.32125761 | L55: 41.13788504 | M55: 42.01530563 | N55: 42.95855746 | O55: 43.97318887 | P55: 45.06531961 | Q55: 46.24171014 | R55: 47.50984057 | S55: 48.87800054 | T55: 50.35539183 | U55: 51.95224562 | V55: 53.67995675 | W55: 55.55123772 | X55: 57.58029556 | Y55: 59.78303536 | Z55: 62.17729487 | AA55: 64.78311537 | AB55: 67.62305499 | AC55: 0 | AD55: 0 | AE55: 0 | AF55: 0 | AG55: 0 | AH55: 0 | AI55: 0 | AJ55: 0 | AK55: 0 | AL55: 0
B56: =F13 -> Simple PMT | G56: 1 | H56: 0 | I56: 38.39712873 | J56: 38.64301658 | K56: 38.93354991 | L56: 39.27264388 | M56: 39.66460328 | N56: 40.11416778 | O56: 40.62656312 | P56: 41.20755901 | Q56: 41.86353487 | R56: 42.60155431 | S56: 43.42944994 | T56: 44.35591985 | U56: 45.39063768 | V56: 46.54437825 | W56: 47.82916135 | X56: 49.25841641 | Y56: 50.84717147 | Z56: 52.61227039 | AA56: 54.57262301 | AB56: 56.74949352 | AC56: -4.980294898 | AD56: -5.368272746 | AE56: -5.794189695 | AF56: -6.262475252 | AG56: -6.778155322 | AH56: -7.346942746 | AI56: -7.975343107 | AJ56: -8.670778605 | AK56: -9.441733408 | AL56: -10.29792454
B57: =F14 -> PPMT Function with Changing Rates | G57: 2 | H57: FALSE | I57: 38.85246473 | J57: 39.57325847 | K57: 40.35995942 | L57: 41.21840891 | M57: 42.15511027 | N57: 43.17731909 | O57: 44.29314757 | P57: 45.51168552 | Q57: 46.84314094 | R57: 48.29900386 | S57: 49.89223763 | T57: 51.63750305 | U57: 53.55142147 | V57: 55.65288469 | W57: 57.96342089 | X57: 60.50762802 | Y57: 63.3136888 | Z57: 66.41398429 | AA57: 69.84582752 | AB57: 73.6523434 | AC57: FALSE | AD57: FALSE | AE57: FALSE | AF57: FALSE | AG57: FALSE | AH57: FALSE | AI57: FALSE | AJ57: FALSE | AK57: FALSE | AL57: FALSE
B58: Remaining Life PMT | G58: 4 | H58: 0 | I58: 38.85246473 | J58: 39.56084174 | K58: 40.32125761 | L58: 41.13788504 | M58: 42.01530563 | N58: 42.95855746 | O58: 43.97318887 | P58: 45.06531961 | Q58: 46.24171014 | R58: 47.50984057 | S58: 48.87800054 | T58: 50.35539183 | U58: 51.95224562 | V58: 53.67995675 | W58: 55.55123772 | X58: 57.58029556 | Y58: 59.78303536 | Z58: 62.17729487 | AA58: 64.78311537 | AB58: 67.62305499 | AC58: 0 | AD58: 0 | AE58: 0 | AF58: 0 | AG58: 0 | AH58: 0 | AI58: 0 | AJ58: 0 | AK58: 0 | AL58: 0
